bitfinex/quotes_ETHUSD_20250711
["timestamp","ask_amount","ask_price","bid_price","bid_amount"]
[1752193658917,3.42948945,2915.9,2915.5,0.005]
[1752193659129,0.4357,2915.6,2915.5,0.005]
[1752193659309,5.8252,2915.6,2915.5,0.005]
[1752193659629,0.1712,2915.6,2915.5,0.005]
[1752193659811,5.8252,2915.6,2915.5,0.005]
[1752193660000,6.2609,2915.6,2915.5,0.005]
[1752193660493,3.6069,2915.6,2915.5,0.005]
[1752193660704,9.2619,2915.6,2915.5,0.005]
[1752193660893,12.69172576,2915.6,2915.5,0.005]
[1752193661095,12.52052576,2915.6,2915.5,0.005]
[1752193661414,7.65122576,2915.6,2915.5,0.005]
[1752193661602,13.30622576,2915.6,2915.5,0.005]
[1752193661917,7.65122576,2915.6,2915.5,0.005]
[1752193662117,13.30522576,2915.6,2915.5,0.005]
[1752193663439,13.30522576,2915.6,2913.0,2.0]
[1752193663440,0.7602,2915.0,2913.2,0.8284]
[1752193663626,10.0,2914.7,2913.2,0.8284]
[1752193663932,13.505,2914.6,2913.3,0.4635]
[1752193664222,5.655,2914.5,2913.5,0.8284]
[1752193664386,5.655,2914.5,2913.6,10.55]
[1752193664585,7.85,2914.6,2913.8,0.55]
[1752193664909,5.655,2915.1,2914.5,0.7546]
[1752193665095,5.655,2915.0,2914.5,0.7546]
[1752193665295,0.4357,2915.9,2914.7,0.7546]
[1752193665486,0.4357,2915.9,2914.8,0.03430767]
[1752193665688,5.655,2915.8,2914.8,0.03430767]
[1752193665892,5.654,2915.7,2915.0,0.8267]
[1752193666093,8.225,2916.2,2915.1,0.03430414]
[1752193666318,8.225,2916.2,2915.3,0.8178]
[1752193666517,8.225,2916.2,2915.5,0.8178]
[1752193666518,13.879,2916.2,2915.5,0.8178]
[1752193666695,13.879,2916.2,2915.6,0.03429825]
[1752193666905,3.0,2916.0,2915.6,0.03429825]
[1752193667100,8.225,2916.2,2915.6,0.03429825]
[1752193667316,5.655,2916.3,2916.0,0.7519]
[1752193667825,0.95652798,2916.4,2916.0,0.7519]
[1752193668000,0.95652798,2916.4,2916.1,0.49779237]
[1752193668204,5.654,2916.8,2916.1,0.4635]
[1752193668393,5.654,2916.8,2916.0,1.2154]
[1752193668595,9.08251795,2916.8,2916.0,0.7519]
[1752193668806,5.654,2916.8,2916.0,0.7519]
[1752193669006,0.4357,2916.9,2916.0,0.7519]
[1752193669207,5.654,2916.8,2916.1,0.03429237]
[1752193669407,5.654,2916.7,2916.0,10.7519]
[1752193669628,8.6627,2917.4,2916.1,4.44273621]
[1752193669809,5.653,2917.3,2916.1,11.0135]
[1752193670329,8.6627,2917.4,2916.1,0.4635]
[1752193670330,5.653,2917.2,2916.1,0.4635]
[1752193670524,8.6627,2917.4,2916.1,0.4635]
[1752193670729,8.6627,2917.4,2916.1,1.0135]
[1752193670934,5.653,2917.3,2916.1,1.0135]
[1752193671103,0.1712,2917.2,2916.7,0.1712]
[1752193671628,0.1712,2917.2,2916.8,0.7806]
[1752193672003,5.653,2917.1,2916.8,0.7806]
[1752193672204,0.1712,2917.2,2916.8,0.7806]
[1752193672424,5.652,2917.1,2916.8,0.7806]
[1752193672612,0.438,2917.0,2916.7,0.1712]
[1752193672800,0.1712,2916.8,2916.4,0.7602]
[1752193673131,6.09,2916.7,2916.4,0.7602]
[1752193673309,5.652,2916.7,2916.4,0.7602]
[1752193673720,5.652,2916.6,2916.4,0.7602]
[1752193674231,5.651,2916.8,2916.5,0.1712]
[1752193674820,0.1712,2917.1,2916.5,0.1712]
[1752193675227,5.651,2917.0,2916.5,0.1712]
[1752193675424,0.438,2916.9,2916.5,0.1712]
[1752193675611,0.6092,2916.8,2916.4,0.7602]
[1752193676217,0.1712,2916.8,2916.4,0.7602]
[1752193677325,5.651,2916.7,2916.4,0.7602]
[1752193677538,5.651,2916.7,2916.5,0.1712]
[1752193677718,0.001,2916.7,2916.5,0.1712]
[1752193677918,0.001,2916.7,2916.5,0.66508767]
[1752193678119,0.001,2916.7,2916.6,0.7901]
[1752193679045,0.001,2916.7,2916.2,0.7901]
[1752193679210,5.649,2916.6,2916.4,0.1712]
[1752193680219,0.3126806,2916.5,2916.4,0.1712]
[1752193680439,0.7506806,2916.5,2915.4,0.7901]
[1752193680640,5.649,2916.6,2915.9,0.7901]
[1752193680641,5.9606806,2916.4,2915.9,0.7901]
[1752193680957,3.438,2916.3,2915.1,0.7901]
[1752193681145,6.86702141,2916.3,2915.1,0.7901]
[1752193681320,6.86702141,2916.3,2915.2,0.03430296]
[1752193681321,3.438,2916.3,2915.2,0.03430296]
[1752193681713,5.648,2916.2,2915.2,0.03430296]
[1752193681916,5.648,2916.2,2915.1,0.7901]
[1752193682116,3.86724457,2916.1,2915.1,0.7901]
[1752193682321,3.86735801,2916.0,2915.1,0.7901]
[1752193682539,0.8236,2915.6,2914.5,0.8144]
[1752193682849,5.648,2915.5,2914.6,0.03431002]
[1752193683148,0.438,2915.9,2914.7,0.8144]
[1752193683315,5.647,2915.8,2914.7,0.8144]
[1752193683716,5.647,2915.7,2914.8,0.03430767]
[1752193684147,5.647,2915.7,2914.7,0.8144]
[1752193684461,0.438,2915.6,2914.7,0.8144]
[1752193684619,0.31301902,2915.5,2914.7,0.8144]
[1752193685043,0.31301902,2915.9,2914.9,0.7751]
[1752193685266,5.647,2915.8,2915.1,10.0]
[1752193685467,5.647,2915.8,2914.9,0.7751]
[1752193685945,3.0,2915.6,2914.9,0.7751]
[1752193686479,8.647,2915.6,2915.0,0.55]
[1752193686653,8.647,2915.6,2914.9,0.7751]
[1752193686980,3.0,2915.6,2915.0,1.04390531]
[1752193687180,3.0,2915.6,2915.2,1.3396]
[1752193687390,3.0,2915.6,2915.2,0.7896]
[1752193687559,3.0,2915.6,2915.5,14.7695434]
[1752193687875,3.0,2915.6,2915.5,15.2291434]
[1752193688074,5.646,2916.3,2915.9,0.7896]
[1752193688249,0.001,2916.7,2916.0,0.03429355]
[1752193688469,5.646,2916.6,2916.0,3.4635534]
[1752193688675,0.001,2916.7,2916.0,0.03429355]
[1752193688980,5.646,2916.6,2916.1,10.0]
[1752193689160,0.001,2916.7,2916.2,0.4938912]
[1752193689563,0.001,2916.7,2916.4,0.7896]
[1752193690258,0.001,2916.7,2916.3,0.03429002]
[1752193690259,3.42888492,2916.4,2916.3,0.03429002]
[1752193690565,6.083,2916.4,2915.1,0.7896]
[1752193690768,3.42945354,2916.0,2914.4,0.7896]
[1752193691077,3.42971263,2915.7,2914.5,0.0343112]
[1752193691279,3.42971263,2915.7,2914.4,0.7896]
[1752193691482,5.644,2915.6,2914.6,0.769]
[1752193691648,5.644,2915.6,2914.7,0.55]
[1752193691847,5.644,2915.6,2914.6,0.769]
[1752193692476,5.644,2915.6,2914.6,4.19999511]
[1752193692695,5.644,2915.6,2914.7,10.55]
[1752193692845,5.644,2915.6,2914.7,0.55]
[1752193693177,0.438,2915.5,2914.6,0.769]
[1752193693882,5.644,2915.4,2914.6,0.769]
[1752193694074,5.644,2915.4,2914.7,0.03430884]
[1752193694271,6.082,2915.5,2914.7,0.03430884]
[1752193695783,0.766,2916.0,2914.8,10.0]
[1752193695960,0.7857,2916.4,2914.9,1.30490649]
[1752193696296,6.081,2916.3,2915.4,0.811]
[1752193697068,6.081,2916.3,2915.4,10.811]
[1752193697408,0.438,2916.3,2915.4,0.811]
[1752193697582,0.439,2916.7,2915.6,10.0]
[1752193697891,5.643,2916.6,2915.7,0.03429708]
[1752193698184,5.643,2916.6,2915.5,10.55]
[1752193698346,5.643,2916.6,2915.7,3.42969007]
[1752193698551,5.643,2916.6,2915.5,13.97994257]
[1752193698552,3.0,2916.5,2915.9,10.7749]
[1752193698780,3.0,2916.5,2915.9,0.7749]
[1752193699149,3.0,2916.5,2916.0,0.58429355]
[1752193699356,3.0,2916.5,2916.0,3.92315624]
[1752193699652,5.643,2916.7,2915.9,0.7749]
[1752193699860,0.001,2916.4,2916.1,10.0]
[1752193700060,0.001,2916.4,2916.0,0.55]
[1752193700296,0.001,2916.4,2916.1,0.03429237]
[1752193700479,0.001,2916.4,2916.3,0.1712]
[1752193701960,0.001,2916.4,2915.9,0.7749]
[1752193701961,0.4313,2916.4,2915.9,0.7749]
[1752193702184,0.4313,2916.4,2916.1,0.1712]
[1752193703586,3.0,2916.2,2916.1,0.1712]
[1752193705377,0.001,2916.4,2916.1,0.1712]
[1752193705768,0.001,2916.4,2916.3,0.1712]
[1752193706091,0.001,2916.4,2916.3,10.20549002]
[1752193706269,0.001,2916.4,2916.3,13.6002025]
[1752193706689,0.001,2916.4,2916.3,14.5970025]
[1752193706911,0.001,2916.4,2916.3,15.4300025]
[1752193708612,5.638,2918.1,2917.0,0.7915]
[1752193708896,5.638,2918.1,2917.5,0.1712]
[1752193709067,0.4313,2917.9,2917.5,0.1712]
[1752193709267,0.001,2917.9,2917.5,0.1712]
[1752193709467,0.001,2917.9,2917.5,5.42406803]
[1752193709694,0.001,2917.9,2917.5,25.45806803]
[1752193709971,0.3144752,2919.1,2918.5,0.55]
[1752193710193,1.2289,2919.6,2918.5,10.55]
[1752193710499,0.4303,2919.5,2919.0,0.1712]
[1752193710685,0.6015,2919.4,2918.9,0.1712]
[1752193711209,0.4303,2919.3,2918.9,0.1712]
[1752193711518,3.42592095,2919.0,2918.5,0.1712]
[1752193711686,0.6015,2918.9,2918.4,0.1712]
[1752193711872,0.1712,2918.9,2918.4,0.1712]
[1752193712186,0.4303,2919.1,2918.7,0.1712]
[1752193712604,5.635,2919.3,2918.3,0.55]
[1752193712901,0.4303,2919.5,2918.6,0.806]
[1752193714301,0.4303,2919.5,2918.7,0.03426182]
[1752193714477,0.4303,2919.5,2918.7,10.03426182]
[1752193714671,0.8221,2919.9,2918.6,0.806]
[1752193714672,1.2524,2919.9,2918.6,0.806]
[1752193714874,0.4303,2919.9,2919.2,10.0]
[1752193715075,0.4303,2919.9,2918.8,3.42595324]
[1752193715076,0.4303,2919.9,2919.3,0.86555478]
[1752193715276,1.2308,2920.3,2919.3,0.86555478]
[1752193715476,5.633,2920.2,2919.3,0.86555478]
[1752193715712,0.4303,2920.3,2919.3,0.86555478]
[1752193715909,9.0283,2920.6,2919.7,10.0]
[1752193716085,9.0283,2920.6,2919.8,0.03424892]
[1752193716086,8.226,2920.6,2919.8,0.03424892]
[1752193716575,8.226,2920.6,2919.9,0.7753]
[1752193716781,8.226,2920.6,2920.0,0.03424657]
[1752193717012,3.42291418,2921.5,2920.0,0.03424657]
[1752193717013,0.4303,2921.1,2920.2,10.0]
[1752193717307,0.4303,2921.1,2920.3,0.03424305]
[1752193717476,0.7606,2921.3,2920.5,10.0]
[1752193717477,5.632,2921.3,2920.5,10.0]
[1752193717680,8.222,2921.7,2920.9,3.42360068]
[1752193718007,8.222,2921.7,2921.0,0.03423485]
[1752193718609,8.222,2921.7,2921.1,0.7536]
[1752193718789,6.0603,2921.9,2921.1,0.7536]
[1752193718977,6.0603,2921.9,2921.2,0.0342325]
[1752193719179,0.4303,2922.3,2921.2,0.0342325]
[1752193719507,0.7843,2922.7,2921.5,0.55]
[1752193719508,5.63,2922.6,2921.5,0.55]
[1752193719708,5.63,2922.6,2921.4,4.22267781]
[1752193719709,5.63,2922.6,2921.4,0.7997]
[1752193719888,5.63,2922.6,2921.5,10.0]
[1752193720089,5.63,2922.6,2921.4,0.7997]
[1752193720293,5.63,2922.6,2921.5,0.03422899]
[1752193720914,0.4303,2922.7,2921.7,3.42266488]
[1752193721083,5.627,2922.8,2921.8,0.7681]
[1752193721479,0.4303,2922.7,2921.8,0.7681]
[1752193721684,3.42172797,2922.5,2921.4,0.7691]
[1752193721880,0.4303,2922.4,2921.4,0.7691]
[1752193722080,0.4303,2922.4,2921.5,0.03422899]
[1752193722081,6.0573,2922.4,2921.5,0.03422899]
[1752193722383,6.0573,2922.4,2921.4,0.7691]
[1752193722579,0.4303,2922.8,2921.5,0.03422899]
[1752193722827,0.4303,2922.8,2922.3,0.1704]
[1752193722828,6.0573,2922.8,2922.3,0.1704]
[1752193722977,0.001,2923.7,2922.8,10.55]
[1752193723182,0.001,2923.7,2923.5,10.0]
[1752193725011,0.001,2923.7,2922.5,0.4468]
[1752193725216,0.4303,2923.5,2922.8,10.0]
[1752193725426,0.4303,2923.5,2922.6,0.7525]
[1752193725806,0.4303,2923.5,2922.7,0.03421493]
[1752193726408,0.4303,2923.5,2922.6,0.7525]
[1752193726734,3.4209349,2923.2,2922.1,0.7987]
[1752193727019,3.85134616,2923.1,2921.6,0.7987]
[1752193727183,6.0533,2923.0,2921.6,0.7987]
[1752193727378,0.4303,2923.0,2921.7,0.03422664]
[1752193727584,3.4212654,2922.9,2921.6,0.7987]
[1752193727785,0.4303,2922.8,2921.6,0.7987]
[1752193728108,0.7647,2922.7,2921.6,0.7987]
[1752193728419,0.4303,2922.6,2921.6,0.7987]
[1752193728784,3.42181203,2922.5,2921.2,0.7796]
[1752193728984,3.42181203,2922.5,2921.3,0.03423133]
[1752193729286,3.42181203,2922.5,2921.2,0.7796]
[1752193729287,3.85217599,2922.4,2921.2,0.7796]
[1752193729707,0.4303,2922.3,2921.2,0.7796]
[1752193730115,1.2,2922.2,2921.2,0.7796]
[1752193730297,1.2,2922.2,2921.2,4.20281661]
[1752193730502,1.2,2922.2,2921.5,10.0]
[1752193730719,1.2,2922.2,2921.7,0.8067]
[1752193730934,1.2,2922.2,2921.8,0.03422547]
[1752193731296,1.2,2922.2,2922.0,10.0]
[1752193731818,1.2,2922.2,2921.8,10.0]
[1752193732015,1.2,2922.2,2921.7,0.8067]
[1752193732581,1.2,2922.2,2921.8,10.0]
[1752193732781,1.2,2922.2,2921.9,0.0342243]
[1752193733020,1.2,2922.2,2922.1,0.1704]
[1752193733556,1.2,2922.2,2922.1,0.48689332]
[1752193733918,1.2,2922.2,2922.1,0.1704]
[1752193734089,1.2,2922.2,2922.1,3.59259636]
[1752193734429,1.2,2922.2,2922.1,0.1704]
[1752193734737,0.4338,2923.2,2922.3,3.42195617]
[1752193734935,0.4348,2923.6,2922.8,0.8263]
[1752193735112,0.4348,2923.6,2923.4,0.1704]
[1752193735308,0.4338,2923.5,2923.4,0.1704]
[1752193735642,0.4338,2923.5,2923.1,0.1704]
[1752193735813,0.4338,2923.4,2923.1,0.1704]
[1752193736013,0.4338,2923.3,2923.1,0.1704]
[1752193736203,0.1714,2923.6,2923.1,0.1704]
[1752193736700,0.4338,2923.5,2923.1,0.1704]
[1752193736900,0.4338,2923.4,2923.1,0.1704]
[1752193737562,0.001,2923.6,2922.8,0.03421376]
[1752193737765,0.001,2923.6,2923.3,0.1704]
[1752193737908,0.4338,2923.5,2922.4,6.429]
[1752193738108,0.4338,2923.5,2923.1,0.1704]
[1752193738348,0.4338,2923.4,2923.2,0.31610675]
[1752193738552,0.4338,2923.4,2923.3,0.31610675]
[1752193738729,0.1714,2923.6,2923.3,0.31610675]
[1752193738932,0.1714,2923.6,2923.1,0.1704]
[1752193739164,0.1714,2923.6,2923.2,0.3159357]
[1752193739303,0.4338,2923.5,2923.3,0.3159357]
[1752193739507,0.001,2923.6,2923.4,0.3159357]
[1752193739749,0.001,2923.6,2923.5,0.3159357]
[1752193740255,0.001,2923.6,2923.5,0.5053728]
[1752193740436,0.4348,2923.6,2923.5,0.6757728]
[1752193740608,0.4348,2923.6,2923.5,0.3159357]
[1752193740815,1.2604,2923.6,2922.9,0.189524]
[1752193741032,9.47146352,2923.5,2923.0,0.31588952]
[1752193741246,0.4338,2923.4,2922.0,0.7537]
[1752193741547,0.4338,2923.4,2922.1,0.1895093]
[1752193741548,3.42126986,2922.9,2922.1,0.1895093]
[1752193741756,5.616,2922.9,2922.2,0.1895093]
[1752193741908,0.4338,2922.8,2922.3,0.1895093]
[1752193742108,3.42172797,2922.5,2922.4,0.1895093]
[1752193742424,0.4338,2922.5,2922.4,0.1895093]
[1752193742611,3.85552797,2922.5,2922.4,0.1895093]
[1752193743211,0.4338,2922.5,2922.4,0.1895093]
[1752193743537,0.7471,2922.7,2922.4,0.1895093]
[1752193743740,5.616,2922.6,2922.5,0.1895093]
[1752193743942,6.0498,2922.6,2922.5,0.1895093]
[1752193744317,0.4338,2922.6,2922.5,0.1895093]
[1752193744649,6.0498,2922.6,2922.5,0.1895093]
[1752193745480,9.47141089,2922.6,2922.5,0.1895093]
[1752193745631,6.0498,2922.6,2922.5,0.1895367]
[1752193745828,6.0498,2922.6,2921.3,4.20681103]
[1752193745829,3.42209924,2922.2,2921.4,0.18954969]
[1752193746083,4.23450731,2922.1,2921.5,0.18954969]
[1752193746370,5.616,2922.0,2921.6,0.18954969]
[1752193746532,9.47214214,2922.0,2921.7,0.18954969]
[1752193746731,9.47214214,2922.0,2920.9,0.804]
[1752193746732,3.85623061,2921.9,2921.8,0.18954969]
[1752193746960,0.4338,2921.9,2921.8,0.18954969]
[1752193747377,0.4338,2921.9,2921.8,0.50572839]
[1752193747579,6.0488,2921.9,2921.8,0.50572839]
[1752193748060,0.8123,2922.1,2921.8,0.50572839]
[1752193748264,5.616,2922.0,2921.9,0.50572839]
[1752193748451,0.8123,2922.1,2921.9,0.50572839]
[1752193748653,0.8123,2922.1,2922.0,0.50572839]
[1752193748853,9.85049636,2922.1,2922.0,0.50572839]
[1752193749372,6.8621,2922.1,2922.0,0.50572839]
[1752193750140,4.66829636,2922.1,2922.0,0.50572839]
[1752193750438,10.28329636,2922.1,2922.0,0.50572839]
[1752193750639,6.8611,2922.1,2922.0,0.50572839]
[1752193750864,10.28329636,2922.1,2922.0,0.50572839]
[1752193751077,6.8611,2922.1,2922.0,0.50572839]
[1752193751255,6.52755815,2922.1,2922.0,0.50572839]
[1752193751449,9.94975451,2922.1,2922.0,0.50572839]
[1752193753241,3.42242938,2922.0,2921.0,0.1704]
[1752193753441,0.1704,2921.6,2921.1,0.50692929]
[1752193753644,5.615,2921.5,2921.2,0.50692929]
[1752193753846,6.0488,2921.5,2921.3,0.50692929]
[1752193754080,6.0488,2921.5,2921.4,0.50692929]
[1752193755274,5.615,2921.5,2921.4,0.50692929]
[1752193755476,6.0488,2921.5,2921.4,0.50692929]
[1752193757359,10.23749919,2921.5,2921.4,0.50692929]
[1752193757558,1.1996,2921.5,2921.4,0.50692929]
[1752193757764,6.8136,2921.5,2921.4,0.50692929]
[1752193758779,1.1996,2921.5,2921.4,0.50692929]
[1752193759161,6.8136,2921.5,2921.4,0.50692929]
[1752193759356,5.614,2921.5,2921.4,0.50692929]
[1752193759961,0.1704,2921.6,2921.4,0.50692929]
[1752193760161,0.1704,2921.6,2921.0,0.1704]
[1752193760162,0.1704,2921.6,2921.5,0.50692929]
[1752193760383,5.7844,2921.6,2921.5,0.50692929]
[1752193760584,0.1704,2921.6,2921.5,0.50692929]
[1752193760898,5.7844,2921.6,2921.5,0.50692929]
[1752193761258,0.8165,2922.6,2921.6,0.814]
[1752193761473,5.614,2922.5,2921.8,10.0]
[1752193761676,5.614,2922.5,2922.3,0.1704]
[1752193761893,0.1704,2922.7,2922.4,0.50692929]
[1752193762075,5.614,2922.6,2922.5,0.50692929]
[1752193764710,0.1704,2922.7,2922.5,0.50692929]
[1752193764883,5.612,2922.6,2922.3,0.1704]
[1752193765081,0.8222,2923.4,2922.5,0.755]
[1752193765273,5.612,2923.3,2922.9,0.1704]
[1752193765469,0.001,2923.5,2923.0,0.78690635]
[1752193765692,0.001,2923.5,2923.4,10.0]
[1752193765998,0.001,2923.5,2923.4,1.07419493]
[1752193766204,0.001,2923.5,2923.4,0.31919493]
[1752193766691,5.612,2923.5,2923.4,0.31919493]
[1752193767901,6.0756,2923.5,2923.4,0.31919493]
[1752193768481,0.001,2923.5,2923.4,0.31919493]
[1752193768683,5.612,2923.5,2923.4,0.31919493]
[1752193769102,0.001,2923.5,2923.4,0.31919493]
[1752193769305,0.001,2923.5,2923.4,1.27639493]
[1752193769596,0.001,2923.5,2923.4,1.70989493]
[1752193769804,0.001,2923.5,2923.4,1.27639493]
[1752193770790,0.001,2923.5,2923.4,1.70989493]
[1752193771621,0.001,2923.5,2923.4,15.68056948]
[1752193774815,0.001,2923.5,2923.4,0.31919493]
[1752193775012,0.4646,2923.5,2923.4,0.31919493]
[1752193775242,1.2607,2923.5,2923.4,0.31919493]
[1752193776353,6.0706,2923.5,2923.4,0.31919493]
[1752193776647,5.607,2923.5,2923.4,0.31919493]
[1752193777114,0.001,2923.5,2923.4,0.31919493]
[1752193777643,0.001,2923.5,2923.0,0.55]
[1752193778005,0.001,2923.5,2923.1,0.4335]
[1752193778201,0.001,2923.5,2923.4,10.0]
[1752193778432,0.001,2923.5,2923.3,0.55]
[1752193778804,0.001,2923.5,2923.4,0.4335]
[1752193779785,0.001,2923.5,2923.2,0.7775]
[1752193780283,0.001,2923.5,2923.3,10.46770791]
[1752193780450,0.001,2923.5,2923.3,10.4335]
[1752193780772,0.001,2923.5,2923.2,4.19839252]
[1752193780773,0.001,2923.5,2923.4,13.88838129]
[1752193780977,0.001,2923.5,2923.4,10.4335]
[1752193781188,0.001,2923.5,2923.4,10.0]
[1752193783300,0.4646,2923.5,2922.4,0.7729]
[1752193783593,0.4646,2923.5,2922.5,0.03421727]
[1752193783805,5.603,2923.4,2922.5,0.03421727]
[1752193784409,5.603,2923.4,2922.4,0.7729]
[1752193784701,0.4636,2923.3,2922.4,0.7729]
[1752193784857,0.634,2923.3,2922.8,0.1704]
[1752193785062,0.1704,2923.1,2922.6,0.1704]
[1752193785285,0.4636,2923.0,2922.6,0.1704]
[1752193785481,3.59142643,2923.1,2922.6,0.1704]
[1752193785685,0.634,2922.9,2922.4,0.1704]
[1752193785889,5.602,2922.8,2922.4,0.1704]
[1752193786089,6.0656,2922.8,2922.4,0.1704]
[1752193786259,5.602,2922.8,2922.4,0.1704]
[1752193786458,5.602,2922.8,2922.1,0.03422196]
[1752193786658,5.602,2922.8,2922.6,0.1704]
[1752193787193,0.634,2923.1,2922.6,0.1704]
[1752193787488,6.236,2923.4,2922.7,0.1704]
[1752193787688,5.5198,2923.5,2923.0,0.1704]
[1752193787689,0.001,2923.5,2923.0,0.1704]
[1752193787860,0.001,2923.5,2923.3,0.1704]
[1752193788291,0.001,2923.5,2923.1,10.4335]
[1752193788458,0.001,2923.5,2923.4,0.1704]
[1752193788880,0.001,2923.5,2923.4,1.41550674]
[1752193789273,0.001,2923.5,2923.4,1.96550674]
[1752193789492,0.001,2923.5,2923.4,15.35197455]
[1752193789797,0.001,2923.5,2923.4,11.9313]
[1752193789965,0.001,2923.5,2923.4,10.9478]
[1752193790162,0.001,2923.5,2923.4,10.1704]
[1752193790399,0.001,2923.5,2923.4,10.0]
[1752193792804,0.8051,2923.3,2922.3,0.8082]
[1752193793003,0.4663,2923.2,2922.3,0.8082]
[1752193793167,3.88729644,2923.2,2922.3,0.8082]
[1752193793567,0.4663,2923.2,2922.3,0.8082]
[1752193793769,3.88723684,2923.2,2922.3,0.8082]
[1752193794403,0.4663,2923.2,2922.3,0.8082]
[1752193794591,0.8051,2923.3,2922.4,0.55]
[1752193794798,0.001,2923.5,2922.5,0.03421727]
[1752193795106,0.001,2923.5,2922.6,10.0]
[1752193796291,0.4663,2923.4,2922.6,10.0]
[1752193796702,3.42079699,2923.3,2922.6,10.0]
[1752193796904,3.42079157,2923.3,2922.3,10.8082]
[1752193797679,0.4663,2923.4,2922.3,10.8082]
[1752193797911,3.42093926,2923.2,2922.3,10.8082]
[1752193798276,3.42080049,2923.3,2922.3,10.8082]
[1752193799578,3.42112459,2923.1,2922.3,10.8082]
[1752193799803,3.88724712,2923.2,2922.3,10.8082]
[1752193800131,3.88724712,2923.2,2921.8,8.207]
[1752193800132,0.8316,2923.0,2921.5,0.7601]
[1752193800277,0.8316,2922.1,2921.8,0.1704]
[1752193800478,0.8316,2922.1,2921.5,0.002]
[1752193800479,3.42278203,2921.6,2921.5,0.002]
[1752193800707,0.1704,2921.6,2921.5,0.002]
[1752193800917,0.6367,2921.6,2921.5,0.002]
[1752193801115,9.65648203,2921.6,2921.5,0.002]
[1752193801409,5.597,2922.0,2921.5,0.002]
[1752193801707,0.1704,2921.9,2921.5,0.002]
[1752193802009,0.1704,2922.1,2921.6,0.1704]
[1752193802311,6.2347,2922.1,2921.6,0.1704]
[1752193802485,5.7684,2922.1,2921.6,0.1704]
[1752193802878,0.4663,2922.0,2921.6,0.1704]
[1752193803207,0.1704,2922.2,2921.6,0.1704]
[1752193803522,5.597,2922.2,2921.5,0.002]
[1752193803722,0.7693,2922.4,2921.9,0.1704]
[1752193803879,5.597,2922.4,2921.9,0.1704]
[1752193804082,0.1704,2922.5,2921.9,0.1704]
[1752193804481,0.771,2922.8,2921.9,0.0342243]
[1752193804680,5.7674,2922.7,2922.2,0.1704]
[1752193805076,0.1704,2922.7,2922.2,0.1704]
[1752193805282,4.65801772,2923.4,2922.3,1.29701962]
[1752193805494,0.1704,2923.1,2922.5,0.1704]
[1752193805719,0.001,2923.5,2922.8,0.55]
[1752193805890,0.001,2923.5,2923.1,0.8128]
[1752193806287,0.4673,2923.5,2923.1,0.8128]
[1752193806614,0.4673,2923.5,2922.0,8.209]
[1752193806615,0.4663,2923.4,2922.6,0.8255]
[1752193806807,5.598,2923.5,2922.6,0.8255]
[1752193807011,5.598,2923.5,2922.7,1.0]
[1752193807379,6.0643,2923.5,2922.6,0.8255]
[1752193808022,0.4663,2923.4,2922.6,0.8255]
[1752193808791,5.596,2923.3,2922.6,0.8255]
[1752193808995,5.596,2923.3,2922.3,0.764]
[1752193808996,3.42090859,2923.2,2922.3,0.764]
[1752193809193,0.001,2922.8,2921.8,0.764]
[1752193809412,0.001,2922.8,2921.9,10.45]
[1752193809637,0.001,2922.8,2922.0,0.03422313]
[1752193809941,0.001,2922.8,2922.0,0.55]
[1752193810291,0.001,2922.8,2922.1,10.0]
[1752193810642,0.001,2922.8,2922.0,10.55]
[1752193810795,0.001,2922.8,2921.9,0.45]
[1752193811130,0.001,2922.8,2921.8,0.764]
[1752193811131,0.4673,2922.8,2921.8,0.764]
[1752193812545,3.42152162,2922.7,2921.8,0.764]
[1752193812747,0.7939,2922.5,2921.8,0.764]
[1752193813093,0.4663,2922.4,2921.5,0.794]
[1752193813606,3.42228231,2922.1,2921.5,0.002]
[1752193813920,0.4663,2922.4,2921.5,0.002]
[1752193813921,3.42208151,2922.2,2921.5,0.002]
[1752193814223,0.4663,2922.1,2921.5,0.002]
[1752193814394,3.8884966,2922.1,2921.5,0.002]
[1752193814597,0.7564,2922.0,2921.5,0.002]
[1752193814921,5.594,2921.9,2921.5,0.002]
[1752193815220,9.48281473,2921.9,2921.5,0.002]
[1752193815424,3.88892415,2921.8,2921.5,0.002]
[1752193815632,3.42274539,2921.7,2921.5,0.002]
[1752193815927,3.88904539,2921.7,2921.5,0.002]
[1752193816132,3.42274539,2921.7,2921.5,0.002]
[1752193816343,0.4663,2921.6,2921.5,0.002]
[1752193816715,10.4718197,2921.6,2921.5,1e-08]
[1752193816925,0.7508,2921.3,2920.4,0.1732]
[1752193817239,4.17487122,2920.5,2920.4,0.002]
[1752193817444,0.7508,2920.5,2920.4,0.002]
[1752193817843,5.593,2920.5,2920.4,0.002]
[1752193818417,1.2828,2921.4,2920.4,0.002]
[1752193818633,5.7634,2921.1,2920.4,0.6232]
[1752193818814,0.1704,2921.1,2920.5,0.55]
[1752193819021,13.803,2921.2,2921.0,0.1704]
[1752193819221,5.592,2921.4,2921.0,0.1704]
[1752193819443,6.0583,2921.4,2921.0,0.1704]
[1752193819647,0.1704,2921.3,2920.8,0.1704]
[1752193820038,5.592,2921.4,2920.7,0.8154]
[1752193820229,5.592,2921.4,2921.0,0.1704]